﻿Body Name,Body,Service Division Label,Service Division Code,Organisational Unit,Expenditure Category,Expenditure Code,CIPFA detailed expediture type,CIPFA detailed expediture code,Narrative,Date,Transaction number,Net Amount,Capital and Revenue,Supplier Name,Supplier ID
South Ribble Borough Council,http://statistics.data.gov.uk/id/local-authority/30UE,Capital,,CDIG - Customer & Digital,Cap Contract Payment,C230,Capital Other Land & Bldgs,,Replacement of log roll edgings at Withy grove and Gregson green,45112,0000490366,17321.46,Revenue,A & G Landscapes & Groundworks LTD,0
South Ribble Borough Council,http://statistics.data.gov.uk/id/local-authority/30UE,Capital,,CDIG - Customer & Digital,Cap Contract Payment,C230,Capital Other Land & Bldgs,,LABOUR,45112,0000490366,2500,Revenue,A & G Landscapes & Groundworks LTD,0
South Ribble Borough Council,http://statistics.data.gov.uk/id/local-authority/30UE,Central Support Services,,CDIG - Customer & Digital,Materials General,4040,Furniture- Equip & Materials,,"Caliper, VIN REDACTED, JFC 20325",45119,0000490261,629.75,Revenue,A & P Truck & Trailer Parts,0
South Ribble Borough Council,http://statistics.data.gov.uk/id/local-authority/30UE,Central Support Services,,COMP - Commercial Services,Window Cleaning,2712,Cleaning & Domestic Supplies,,"For (PPM) works as per NAME REDACTED , , Civic Centre – Internal, External windows and solar panel clean , , £3250.00",45119,0000490422,3250,Revenue,A 2 Clean Ltd,0
South Ribble Borough Council,http://statistics.data.gov.uk/id/local-authority/30UE,Street Cleansing,,CDIG - Customer & Digital,Agency Staff,1121,Salaries,,NAME REDACTED W/E 16.06.23 ,45112,0000490153,574.97,Revenue,ACE PERSONNEL,0
South Ribble Borough Council,http://statistics.data.gov.uk/id/local-authority/30UE,Street Cleansing,,CDIG - Customer & Digital,Agency Staff,1121,Salaries,,NAME REDACTED W/E 16.06.23 ,45112,0000490153,579.11,Revenue,ACE PERSONNEL,0
South Ribble Borough Council,http://statistics.data.gov.uk/id/local-authority/30UE,Street Cleansing,,CDIG - Customer & Digital,Agency Staff,1121,Salaries,,NAME REDACTED W/E 23.06.23,45119,0000490327,596.7,Revenue,ACE PERSONNEL,0
South Ribble Borough Council,http://statistics.data.gov.uk/id/local-authority/30UE,Street Cleansing,,CDIG - Customer & Digital,Agency Staff,1121,Salaries,,NAME REDACTED W/E 23.06.23,45119,0000490327,535.5,Revenue,ACE PERSONNEL,0
South Ribble Borough Council,http://statistics.data.gov.uk/id/local-authority/30UE,Street Cleansing,,CDIG - Customer & Digital,Agency Staff,1121,Salaries,,NAME REDACTED W/E 23.06.23,45119,0000490327,589.05,Revenue,ACE PERSONNEL,0
South Ribble Borough Council,http://statistics.data.gov.uk/id/local-authority/30UE,Street Cleansing,,CDIG - Customer & Digital,Agency Staff,1121,Salaries,,NAME REDACTED W/E 30.06.23,45126,0000490502,596.7,Revenue,ACE PERSONNEL,0
South Ribble Borough Council,http://statistics.data.gov.uk/id/local-authority/30UE,Street Cleansing,,CDIG - Customer & Digital,Agency Staff,1121,Salaries,,NAME REDACTED W/E 30.06.23,45126,0000490502,566.1,Revenue,ACE PERSONNEL,0
South Ribble Borough Council,http://statistics.data.gov.uk/id/local-authority/30UE,Street Cleansing,,CDIG - Customer & Digital,Agency Staff,1121,Salaries,,NAME REDACTED W/E 30.06.23,45126,0000490502,578.8,Revenue,ACE PERSONNEL,0
South Ribble Borough Council,http://statistics.data.gov.uk/id/local-authority/30UE,Street Cleansing,,CDIG - Customer & Digital,Agency Staff,1121,Salaries,,NAME REDACTED W/E 07.07.23,45126,0000490637,596.7,Revenue,ACE PERSONNEL,0
South Ribble Borough Council,http://statistics.data.gov.uk/id/local-authority/30UE,Street Cleansing,,CDIG - Customer & Digital,Agency Staff,1121,Salaries,,NAME REDACTED W/E 07.07.23,45126,0000490637,563.5,Revenue,ACE PERSONNEL,0
South Ribble Borough Council,http://statistics.data.gov.uk/id/local-authority/30UE,Community Safety Services,,CDIG - Customer & Digital,Maintenance & Repair,4013,Furniture- Equip & Materials,,To check all cameras on site at ADDRESS REDACTED - reestablish connection to CCTV,45119,0000490298,540,Revenue,ADT FIRE & SECURITY PLC,0
South Ribble Borough Council,http://statistics.data.gov.uk/id/local-authority/30UE,Central Support Services,,COMP - Commercial Services,Reactive Repair & Maintenance,2020,Premises Repair & Mtne,,Replacement of 14 sink taps at Moss Side Community Centre (male and female bathrooms) as per NAME REDACTED request,45133,0000490762,770,Revenue,Ainscoe Plumbing & Heating Ltd,0
South Ribble Borough Council,http://statistics.data.gov.uk/id/local-authority/30UE,Open Spaces,,PDEV - Planning & Development,GM Refurbishment,4657,Expenses,,"Hand Weed, Bark Mulch and plant",45119,0000490284,2500,Revenue,ALBEN LANDSCAPES,0
South Ribble Borough Council,http://statistics.data.gov.uk/id/local-authority/30UE,Capital,,COMP - Commercial Services,Cap Contract Payment,C230,Capital Other Land & Bldgs,,"for DNO Connections and M&E Works in line with the Decarbonisation Scheme, across the leisure centres and civic centre please., ,",45126,0000490065,264922.63,Revenue,Alliance Leisure Services Limited,0
South Ribble Borough Council,http://statistics.data.gov.uk/id/local-authority/30UE,Capital,,COMP - Commercial Services,Cap Contract Payment,C230,Capital Other Land & Bldgs,,"final M&E Works in line with the Decarbonisation Scheme, across the leisure centre and civic centre , The Civic Centre Decarbonis",45126,0000490066,17811.01,Revenue,Alliance Leisure Services Limited,0
South Ribble Borough Council,http://statistics.data.gov.uk/id/local-authority/30UE,Capital,,COMP - Commercial Services,Cap Contract Payment,C230,Capital Other Land & Bldgs,,"for DNO Connections and M&E Works in line with the Decarbonisation Scheme, across the leisure centres and civic centre please., ,",45126,0000490067,444588.03,Revenue,Alliance Leisure Services Limited,0
South Ribble Borough Council,http://statistics.data.gov.uk/id/local-authority/30UE,Capital,,COMP - Commercial Services,Cap Contract Payment,C230,Capital Other Land & Bldgs,,"Penwortham Leisure Centre Decarbonisation Works:Sub-Total : £2,179,797.00+ VAT £435,959.40Total: £2,615,756.40",45126,0000490068,239370.25,Revenue,Alliance Leisure Services Limited,0
South Ribble Borough Council,http://statistics.data.gov.uk/id/local-authority/30UE,Local Tax Collection,,CDIG - Customer & Digital,Bank Charges,4811,Miscellaneous Expenses,,Cash payments,45126,0000490460,640.32,Revenue,ALLPAY LTD,0
South Ribble Borough Council,http://statistics.data.gov.uk/id/local-authority/30UE,Central Support Services,,CDIG - Customer & Digital,Agency Staff,1121,Salaries,,Agency Staff w/e 02/07/2023 - Week 13,45126,0000490618,8863.06,Revenue,ALS Managed Services Ltd,0
South Ribble Borough Council,http://statistics.data.gov.uk/id/local-authority/30UE,Central Support Services,,CDIG - Customer & Digital,Agency Staff,1121,Salaries,,Agency Staff w/e 25/06/2023 - Week 12,45126,0000490620,7000.47,Revenue,ALS Managed Services Ltd,0
South Ribble Borough Council,http://statistics.data.gov.uk/id/local-authority/30UE,Central Support Services,,CDIG - Customer & Digital,Agency Staff,1121,Salaries,,Agency Staff w/e 16/07/2023 - Week 15,45133,0000490810,8335.79,Revenue,ALS Managed Services Ltd,0
South Ribble Borough Council,http://statistics.data.gov.uk/id/local-authority/30UE,Central Support Services,,CDIG - Customer & Digital,Agency Staff,1121,Salaries,,Agency Staff w/e 09/07/2023 - Week 14,45133,0000490823,8568.96,Revenue,ALS Managed Services Ltd,0
South Ribble Borough Council,http://statistics.data.gov.uk/id/local-authority/30UE,Capital,,COMU - Communities,Capital Grant,C570,Deferrd Chgs-Improvemnt Grants,,"DFG WORK FOR ADAPTATION FOR LEVEL ACCESS SHOWER AT ADDRESS REDACTED AS PER SRBC PLANS AND QUOTE SUPPLIED OF £6941.00, C",45133,0000490492,4527,Revenue,APG DOMESTIC SERVICES,0
South Ribble Borough Council,http://statistics.data.gov.uk/id/local-authority/30UE,Capital,,COMP - Commercial Services,Cap Contract Payment,C230,Capital Other Land & Bldgs,,"Archaeological watching brief for path works, Worden Park, Leyland",45119,0000490372,7200,Revenue,Archaeological Research Services Ltd,0
South Ribble Borough Council,http://statistics.data.gov.uk/id/local-authority/30UE,Central Support Services,,GOVE - Governance,Property Insurance,2811,Premises Insurance,,SRBC - Addition of McKenzie Arms Development - Property Policy,45112,0000489668,656.41,Revenue,Arthur J. Gallagher,0
South Ribble Borough Council,http://statistics.data.gov.uk/id/local-authority/30UE,Capital,,PDEV - Planning & Development,Cap Contract Payment,C230,Capital Other Land & Bldgs,,A range of plants for Strawberry Valley Park Dementia Garden. Total cost including delivery £2512.30.,45119,0000490076,1582.32,Revenue,BANNISTER HALL LANDSCAPE SUPPLIES,0
South Ribble Borough Council,http://statistics.data.gov.uk/id/local-authority/30UE,Housing Advice,,COMU - Communities,Contributions to Other Bodies,4730,Grants & Subscriptions,,AFFORDABLE WARMTH SCHEME FOR BOILER WORKS AT ADDRESS REDACTED AS PER QUOTE SUPPLIED OF £1680.00 INC VAT,45119,0000490192,1400,Revenue,Bartons of Duke Street Ltd,0
South Ribble Borough Council,http://statistics.data.gov.uk/id/local-authority/30UE,Housing Advice,,COMU - Communities,Contributions to Other Bodies,4730,Grants & Subscriptions,,AFFORDABLE WARMTH SCHEME FOR INSULATION WORKS AT ADDRESS REDACTED AS PER QUOTE SUPPLIED OF £829 INC VAT,45112,0000490294,909,Revenue,Bartons of Duke Street Ltd,0
South Ribble Borough Council,http://statistics.data.gov.uk/id/local-authority/30UE,Surplus or Deficit on Trading,,COMP - Commercial Services,Reactive Repair & Maintenance,2020,Premises Repair & Mtne,,"Requested by NAME REDACTED - Works as per quote `estimate ADDRESS REDACTED` dated , 02March., EICR & removal of asbestos. Replace li",45126,0000490653,2279.8,Revenue,BELEC ELECTRICAL LTD,0
South Ribble Borough Council,http://statistics.data.gov.uk/id/local-authority/30UE,Economic Development,,COMP - Commercial Services,Planned Annual Repair & Maintenance,2021,Premises Repair & Mtne,,"Leyland Market	Fixed Wire Test	Yearly		Market place (stalls, Café, toilets, lighting, A/C, contactors)	£750.00",45126,0000490659,750,Revenue,BELEC ELECTRICAL LTD,0
South Ribble Borough Council,http://statistics.data.gov.uk/id/local-authority/30UE,Recreation & Sport,,COMU - Communities,Publicity & Promotion,4842,Miscellaneous Expenses,,"Ordering certificates for Bikeability training;, L1 3x pack of 50 = £90, L2 28x pack of 50 = £840, L3 10x pack of 20 = £160, Ship",45119,0000490548,929.13,Revenue,BIKEABILITY TRUST,0
South Ribble Borough Council,http://statistics.data.gov.uk/id/local-authority/30UE,Street Cleansing,,CDIG - Customer & Digital,Hiring Expenses,3212,Contract Hire & Operating Leas,,Hire of Ford transit 350 l2 single cab tipper one stop alloy body 2 ltr 130 ps euro 6 VIN REDACTED for 3 months from 04.04.23,45112,0000490175,840,Revenue,Blackburn Van Hire & Sales Limited,0
South Ribble Borough Council,http://statistics.data.gov.uk/id/local-authority/30UE,Street Cleansing,,CDIG - Customer & Digital,Hiring Expenses,3212,Contract Hire & Operating Leas,,Hire of Ford transit 350 L2 single cab tipper one stop alloy body 2 ltr 130 ps euro 6 VIN REDACTED for 3 months from 04.04.2023,45126,0000490176,660,Revenue,Blackburn Van Hire & Sales Limited,0
South Ribble Borough Council,http://statistics.data.gov.uk/id/local-authority/30UE,Central Support Services,,POLY - Policy,Lancashire Payroll Service,4531,Services,,Payroll contract charges for 2022/2023 for South Ribble Borough Council,45133,0000489807,8539.6,Revenue,Blackpool Council,0
South Ribble Borough Council,http://statistics.data.gov.uk/id/local-authority/30UE,Short Term Creditors,,POLY - Policy,Amount Paid,0030,Balance Sheet,,Blues and Twos - June 23 Deductions from Payroll,45119,0000490555,6051,Revenue,Blues and Twos Credit Union,0
South Ribble Borough Council,http://statistics.data.gov.uk/id/local-authority/30UE,Central Support Services,,CDIG - Customer & Digital,Clothing and Uniforms,4410,"Clothes,uniform & laundry",,1 Welding Mask,45112,0000490077,550,Revenue,BOC GASES,0
South Ribble Borough Council,http://statistics.data.gov.uk/id/local-authority/30UE,Open Spaces,,COMP - Commercial Services,GM Refurbishment,4657,Expenses,,Stock proof fencing at Worden and Hurst Grange Parks,45119,0000490250,4600,Revenue,Brewers Contractors Limited,0
South Ribble Borough Council,http://statistics.data.gov.uk/id/local-authority/30UE,Capital,,COMU - Communities,Capital Grant,C570,Deferrd Chgs-Improvemnt Grants,,DFG WORK TO COMPLETE BEDROOM/BATHROOM ADAPTATION AT ADDRESS REDACTED AS PER QUOTE SUPPLIED £37514.00. CUST CONTRIBUTION,45112,0000490357,4514,Revenue,Bright Construction North West Ltd,0
South Ribble Borough Council,http://statistics.data.gov.uk/id/local-authority/30UE,Open Spaces,,COMP - Commercial Services,GM Refurbishment,4657,Expenses,,"5no. BXPU 1646-RT Edinburgh Pu Bollards (735mm above ground), black RAL 9005 (£153 each - £765 total), 5no. BXPU 1539-RM Manchest",45126,0000490552,2177,Revenue,BROXAP LTD,0
South Ribble Borough Council,http://statistics.data.gov.uk/id/local-authority/30UE,Central Support Services,,CDIG - Customer & Digital,Agency Staff,1121,Salaries,,Benefits processing work for w/e 14.05.23 to 03.07.23 (half of total cost),45126,0000490510,2301,Revenue,Business Smart Solutions,0
South Ribble Borough Council,http://statistics.data.gov.uk/id/local-authority/30UE,Open Spaces,,PDEV - Planning & Development,GM Refurbishment,4657,Expenses,,"6T MOT Type 1, 6no. 3600x2000mm reinforcing mesh (10mm wire) and 60no. plastic reinforcing mesh spacers, delivered to Worden Park",45126,0000490593,659.24,Revenue,C & W BERRY LTD,0
South Ribble Borough Council,http://statistics.data.gov.uk/id/local-authority/30UE,Central Support Services,,PDEV - Planning & Development,Agency Staff,1121,Salaries,,Consultant planning officer NAME REDACTED,45119,0000490114,1449,Revenue,CAPITA PROPERTY AND INFRASTRUCTURE LTD,0
South Ribble Borough Council,http://statistics.data.gov.uk/id/local-authority/30UE,Recreation & Sport,,COMP - Commercial Services,Licences Fee General,488B,Miscellaneous Expenses,,jul -sept 23,45126,0000490464,1125,Revenue,Carr Street Community Centre,0
South Ribble Borough Council,http://statistics.data.gov.uk/id/local-authority/30UE,Economic Development,,POLY - Policy,Operational Equip & Tools,4010,Furniture- Equip & Materials,,Stage and PA Hire for Battle of Bamber Bridge,45112,0000489730,1900,Revenue,CDS Events,0
South Ribble Borough Council,http://statistics.data.gov.uk/id/local-authority/30UE,Central Support Services,,COMP - Commercial Services,Planned Annual Repair & Maintenance,2021,Premises Repair & Mtne,,"Annual contract 2023/2024 ref 307540 for the service of the emergency standby power unit AKSA 88kVA, generator located at the 504",45126,0000490331,1058,Revenue,Central Power Services ltd,0
South Ribble Borough Council,http://statistics.data.gov.uk/id/local-authority/30UE,Central Support Services,,COMP - Commercial Services,Planned Annual Repair & Maintenance,2021,Premises Repair & Mtne,,"Riello SDH/Dialogue Plus/Eaton, 504338/504339/, 504340, ADDRESS REDACTED",45126,0000490332,2440,Revenue,Central Power Services ltd,0
South Ribble Borough Council,http://statistics.data.gov.uk/id/local-authority/30UE,Central Support Services,,POLY - Policy,Short Course,1402,Training Expenses,,"Training to improve staff competency under Integrated Pollution, Prevention and Control regime - for NAME REDACTED and others 1",45133,0000487601,1015.2,Revenue,CHORLEY BOROUGH COUNCIL,0
South Ribble Borough Council,http://statistics.data.gov.uk/id/local-authority/30UE,Short Term Debtors,,POLY - Policy,Other Debtor,0070,Balance Sheet,,Repayment fees for NAME REDACTED for Tusker Car Scheme,45119,0000490498,4434.1,Revenue,CHORLEY BOROUGH COUNCIL,0
South Ribble Borough Council,http://statistics.data.gov.uk/id/local-authority/30UE,Central Support Services,,COMP - Commercial Services,Intruder Alarm,2035,Premises Repair & Mtne,,match off against credit 9877971,45126,0000488090,1040.32,Revenue,CHUBB LTD,0
South Ribble Borough Council,http://statistics.data.gov.uk/id/local-authority/30UE,Homelessness,,COMU - Communities,Contributions to Other Bodies,4730,Grants & Subscriptions,,"Purchase order raised to pay CIVICA UK LTD the sum of £19,464.60 (VAT has already been applied) for the Licence, Support and Main",45119,0000490007,16220.5,Revenue,CIVICA UK LTD,0
South Ribble Borough Council,http://statistics.data.gov.uk/id/local-authority/30UE,Homelessness,,COMU - Communities,Temporary Accommodation,5311,Contractors Chges,,"Homelessness S188 duty placements at ADDRESS REDACTED., , 4 individuals from 19.06.23 to 02.07.23, , Including:, , ",45112,0000490258,2968,Revenue,CLAREMONT HOTEL,0
South Ribble Borough Council,http://statistics.data.gov.uk/id/local-authority/30UE,Homelessness,,COMU - Communities,Temporary Accommodation,5311,Contractors Chges,,"Purchase order for NAME REDACTED at ADDRESS REDACTED so that she can invoice us for £2,968.00 for guests we have booked in there unde",45119,0000490594,2968,Revenue,CLAREMONT HOTEL,0
South Ribble Borough Council,http://statistics.data.gov.uk/id/local-authority/30UE,Democratic Represent and  Mgnt,,GOVE - Governance,External Catering Charges,4575,Services,,SRBC Mayors Installation Banquet 7 July 202382 people in totalJubilee Suite hire and special occasion menu choices to be provided,45119,0000490578,2678.34,Revenue,CLASSIC LODGES,0
South Ribble Borough Council,http://statistics.data.gov.uk/id/local-authority/30UE,Regulatory Services,,COMU - Communities,Burial Expenses,5310,Contractors Chges,,For the Funeral of NAME REDACTED,45112,0000490383,1322,Revenue,CLIFFORD WARD (FUNERAL DIRECTORS),0
South Ribble Borough Council,http://statistics.data.gov.uk/id/local-authority/30UE,Central Support Services,,CDIG - Customer & Digital,Operational Equip & Tools,4010,Furniture- Equip & Materials,,PADLOCKS - SQUIRE 660 TO PASS KEY 10,45119,0000490501,880,Revenue,COLLINS & SONS,0
South Ribble Borough Council,http://statistics.data.gov.uk/id/local-authority/30UE,Central Support Services,,CDIG - Customer & Digital,Office Requisites,4136,Printing- Stat & Office Expens,,30 x Jabra EVOLVE 30 II Mono USB Headset MS JABRA 5393-823-309 - £35.25 ex VAT 30 x USB-C To Lightning Cable 1 M - £14.14 30 x St,45126,0000490509,1021.2,Revenue,Corptel Direct( Europe) Ltd,0
South Ribble Borough Council,http://statistics.data.gov.uk/id/local-authority/30UE,Central Support Services,,CDIG - Customer & Digital,Miscellaneous Expenses,4851,Miscellaneous Expenses,,Serve and Evict Travellers from Tardy Gate Green,45119,0000490521,2750,Revenue,Court Enforcement Specialists Ltd,0
South Ribble Borough Council,http://statistics.data.gov.uk/id/local-authority/30UE,Regulatory Services,,COMU - Communities,Professional Fees,4510,Services,,Zoo Licence Inspection at Turbary Woods Owl anf Bird of Prey Sanctuary 27th June 2023,45133,0000490769,1445.39,Revenue,Cracknell Wildlife and Vetinary Services,0
South Ribble Borough Council,http://statistics.data.gov.uk/id/local-authority/30UE,Local Tax Collection,,CDIG - Customer & Digital,Postage General,4291,Communications & Comuting,,POSTAGE FOR JUNE 2023,45112,0000490377,534.9,Revenue,CRITIQOM,0
South Ribble Borough Council,http://statistics.data.gov.uk/id/local-authority/30UE,Local Tax Collection,,CDIG - Customer & Digital,Postage General,4291,Communications & Comuting,,POSTAGE FOR JUNE 2023,45112,0000490378,551.53,Revenue,CRITIQOM,0
South Ribble Borough Council,http://statistics.data.gov.uk/id/local-authority/30UE,Local Tax Collection,,CDIG - Customer & Digital,Postage General,4291,Communications & Comuting,,POSTAGE FOR JUNE 2023,45119,0000490462,1388.82,Revenue,CRITIQOM,0
South Ribble Borough Council,http://statistics.data.gov.uk/id/local-authority/30UE,Local Tax Collection,,CDIG - Customer & Digital,Postage General,4291,Communications & Comuting,,POSTAGE FOR JULY 2023,45133,0000490770,551.35,Revenue,CRITIQOM,0
South Ribble Borough Council,http://statistics.data.gov.uk/id/local-authority/30UE,Local Tax Collection,,CDIG - Customer & Digital,Postage General,4291,Communications & Comuting,,POSTAGE FOR JULY 2023,45133,0000490876,510.84,Revenue,CRITIQOM,0
South Ribble Borough Council,http://statistics.data.gov.uk/id/local-authority/30UE,Capital,,COMP - Commercial Services,Cap Professional Fees,C210,Capital Other Land & Bldgs,,Leyland Town Deal - Traffic and Transport Engineering Services Professional Fees - Procurement 3: Public Realm (RIBA 4),45119,0000490303,7984,Revenue,Curtins Consulting Ltd,0
South Ribble Borough Council,http://statistics.data.gov.uk/id/local-authority/30UE,Short Term Creditors,,CDIG - Customer & Digital,Bank ac Unident Income,0008,Balance Sheet,,refund of payment rec`d in error,45119,0000490336,2811,Revenue,Cushman & Wakefield,0
South Ribble Borough Council,http://statistics.data.gov.uk/id/local-authority/30UE,Central Support Services,,GOVE - Governance,Legal,4821,Miscellaneous Expenses,,NAME REDACTED V South Ribble Borough Council-latest invoice,45126,0000490587,6165,Revenue,DAC BEACHCROFT LLP,0
South Ribble Borough Council,http://statistics.data.gov.uk/id/local-authority/30UE,Recreation & Sport,,CDIG - Customer & Digital,Telephones-Rental,4261,Communications & Comuting,,31/5/2023,45126,0000490741,533.68,Revenue,Daisy Communications LTD,0
South Ribble Borough Council,http://statistics.data.gov.uk/id/local-authority/30UE,Central Support Services,,CDIG - Customer & Digital,Agency Staff,1121,Salaries,,South Ribble Customer Services Housing Temp Cover,45112,0000490155,514.8,Revenue,Daniel Adams Recruitment Ltd,0
South Ribble Borough Council,http://statistics.data.gov.uk/id/local-authority/30UE,Central Support Services,,CDIG - Customer & Digital,Agency Staff,1121,Salaries,,South Ribble Customer Services Housing Temp Cover,45126,0000490527,500.4,Revenue,Daniel Adams Recruitment Ltd,0
South Ribble Borough Council,http://statistics.data.gov.uk/id/local-authority/30UE,Homelessness,,COMU - Communities,Contributions to Other Bodies,4730,Grants & Subscriptions,,"£525.00 for accommodation for NAME REDACTED at ADDRESS REDACTED, owned and run by NAME REDACTED and NAME REDACTED",45112,0000490260,525,Revenue,David Iddon & Corrina Kellett,0
South Ribble Borough Council,http://statistics.data.gov.uk/id/local-authority/30UE,Homelessness,,COMU - Communities,Contributions to Other Bodies,4730,Grants & Subscriptions,,Accommodation for a NAME REDACTED at ADDRESS REDACTED for four weeks from 22nd July 2023 to 19th August 2023 at a,45133,0000490830,525,Revenue,David Iddon & Corrina Kellett,0
South Ribble Borough Council,http://statistics.data.gov.uk/id/local-authority/30UE,Capital,,COMP - Commercial Services,Misc Capital Payments,C234,Capital Other Land & Bldgs,,"28/04/2023, Our Ref: 7166, , Re: Fire Alarm System Servicing & Monitoring - ADDRESS REDACTED, , Annual s",45112,0000490144,890,Revenue,DES Electrical Services Ltd,0
South Ribble Borough Council,http://statistics.data.gov.uk/id/local-authority/30UE,Surplus or Deficit on Trading,,COMP - Commercial Services,Planned Annual Repair & Maintenance,2021,Premises Repair & Mtne,,Undertake EICR test on 37 circuits. As shown on site.as per NAME REDACTED request at ADDRESS REDACTED,45112,0000490290,555,Revenue,DES Electrical Services Ltd,0
South Ribble Borough Council,http://statistics.data.gov.uk/id/local-authority/30UE,Surplus or Deficit on Trading,,COMP - Commercial Services,Reactive Repair & Maintenance,2020,Premises Repair & Mtne,,"Re-Board fireline ceiling, Disconnect the electrical cables and equipment from the ceiling. To take down the current plaster boar",45126,0000490671,546,Revenue,DES Electrical Services Ltd,0
South Ribble Borough Council,http://statistics.data.gov.uk/id/local-authority/30UE,Surplus or Deficit on Trading,,COMP - Commercial Services,Reactive Repair & Maintenance,2020,Premises Repair & Mtne,,"To remove the rotten outside store door and casing and replace with a new ply lined fire door, along with a new door casing and t",45126,0000490672,954,Revenue,DES Electrical Services Ltd,0
South Ribble Borough Council,http://statistics.data.gov.uk/id/local-authority/30UE,Surplus or Deficit on Trading,,COMP - Commercial Services,Reactive Repair & Maintenance,2020,Premises Repair & Mtne,,", Remove the rotten timber gate as shown on site and replace with a new same style/construction timber gate. Reuse the current hi",45126,0000490673,535,Revenue,DES Electrical Services Ltd,0
South Ribble Borough Council,http://statistics.data.gov.uk/id/local-authority/30UE,Capital,,COMU - Communities,Capital Grant,C570,Deferrd Chgs-Improvemnt Grants,,"DFG WORK FOR STAIRLIFT AT ADDRESS REDACTED AS PER SRBC PLANS AND QUOTE SUPPLIED OF £6030- 24 MONTH WARRANTY ONLY, T",45112,0000490334,6030,Revenue,Dolphin Mobility Ltd,0
South Ribble Borough Council,http://statistics.data.gov.uk/id/local-authority/30UE,Central Support Services,,CDIG - Customer & Digital,Operational Equip & Tools,4010,Furniture- Equip & Materials,,Licence renewal,45112,0000490344,1445,Revenue,Eclipse Automotive Technology Ltd,0
South Ribble Borough Council,http://statistics.data.gov.uk/id/local-authority/30UE,Short Term Creditors,,CDIG - Customer & Digital,Manual Control,0001,Balance Sheet,,,45119,0000490475,1228.5,Revenue,Endeavour Learning Trust,0
South Ribble Borough Council,http://statistics.data.gov.uk/id/local-authority/30UE,Capital,,COMP - Commercial Services,Cap Contract Payment,C230,Capital Other Land & Bldgs,,McKenzie Arms (MEP) Client Side Monitoring Stage 5/6,45119,0000489320,500,Revenue,Envision Energy Ltd,0
South Ribble Borough Council,http://statistics.data.gov.uk/id/local-authority/30UE,Economic Development,,POLY - Policy,Professional Fees,4510,Services,,For the delivery of equality champion training (scheduled on 24/05/2023 in Committee Room 1 at Chorley Town Hall),45126,0000489567,828,Revenue,Equality and Diversity UK,0
South Ribble Borough Council,http://statistics.data.gov.uk/id/local-authority/30UE,Community Development,,COMU - Communities,Core Fund,4861,Miscellaneous Expenses,,Boost Fund project from Leyland and Farington Community Hub – site improvements,45126,0000490494,9000,Revenue,Farington Conservative Bowling Club,0
South Ribble Borough Council,http://statistics.data.gov.uk/id/local-authority/30UE,Central Support Services,,CDIG - Customer & Digital,Materials General,4040,Furniture- Equip & Materials,,"Bin Catcher Arm, VIN REDACTED, jfc-20261, PL",45112,0000490174,1171.5,Revenue,Faun Zoeller (UK) Ltd,0
South Ribble Borough Council,http://statistics.data.gov.uk/id/local-authority/30UE,Central Support Services,,CDIG - Customer & Digital,Subscriptions General,4721,Grants & Subscriptions,,Public Service Membership 2023-24,45112,0000490408,1375,Revenue,FREIGHT TRANSPORT ASSOCIATION,0
South Ribble Borough Council,http://statistics.data.gov.uk/id/local-authority/30UE,Central Support Services,,CDIG - Customer & Digital,Materials General,4040,Furniture- Equip & Materials,,Yolk RamYD19 AUNJFC 19161,45119,0000482738,981.68,Revenue,GEESINK NORBA LTD,0
South Ribble Borough Council,http://statistics.data.gov.uk/id/local-authority/30UE,Central Support Services,,CDIG - Customer & Digital,Materials General,4040,Furniture- Equip & Materials,,"Filter kit, 3 x Bottom blades and screws, 2x deflector flaps, VIN REDACTED, JFC 19901",45126,0000490724,656.02,Revenue,GIBSONS GARDEN MACHINERY LTD,0
South Ribble Borough Council,http://statistics.data.gov.uk/id/local-authority/30UE,Capital,,COMP - Commercial Services,Cap Contract Payment,C230,Capital Other Land & Bldgs,,Leyland Town Deal - Outlet Gas Pipe Disconnection (ADDRESS REDACTED),45112,0000489842,982.47,Revenue,GOS Heating Ltd,0
South Ribble Borough Council,http://statistics.data.gov.uk/id/local-authority/30UE,Central Support Services,,COMP - Commercial Services,Reactive Repair & Maintenance,2020,Premises Repair & Mtne,,"Replace all associated pipework feeding commercial cooker, civic centre kitchen. Following gas safety inspection replace for new,",45119,0000490456,570,Revenue,GOS Heating Ltd,0
South Ribble Borough Council,http://statistics.data.gov.uk/id/local-authority/30UE,Surplus or Deficit on Trading,,COMP - Commercial Services,Reactive Repair & Maintenance,2020,Premises Repair & Mtne,,"Gas engineer completed the service at Holland House but had to isolate one of the water heaters, as immediately dangerous due to ",45133,0000490834,1077.58,Revenue,GOS Heating Ltd,0
South Ribble Borough Council,http://statistics.data.gov.uk/id/local-authority/30UE,Corporate Management,,POLY - Policy,External Audit Fees,4512,Services,,2022/23 Audit Fees,45112,0000489517,10734.91,Revenue,Grant Thornton UK LLP,0
South Ribble Borough Council,http://statistics.data.gov.uk/id/local-authority/30UE,Capital,,COMP - Commercial Services,Cap Contract Payment,C230,Capital Other Land & Bldgs,,"Supply and install new footpaths, dementia garden and planting, Strawberry Valley Park, Leyland",45126,0000490785,511.87,Revenue,Ground Inc Ltd,0
South Ribble Borough Council,http://statistics.data.gov.uk/id/local-authority/30UE,Recreation & Sport,,COMP - Commercial Services,Licences Fee General,488B,Miscellaneous Expenses,,qtr 2 jul-sept23,45126,0000490463,1000,Revenue,HIGHER WALTON COMMUNITY CENTRE,0
South Ribble Borough Council,http://statistics.data.gov.uk/id/local-authority/30UE,Short Term Creditors,,POLY - Policy,Amount Received,0140,Balance Sheet,,,45119,0000489885,620.8,Revenue,HM REVENUE & CUSTOMS,0
South Ribble Borough Council,http://statistics.data.gov.uk/id/local-authority/30UE,Short Term Creditors,,POLY - Policy,Amount Received,0140,Balance Sheet,,,45119,0000490039,1128.2,Revenue,HM REVENUE & CUSTOMS,0
South Ribble Borough Council,http://statistics.data.gov.uk/id/local-authority/30UE,Short Term Creditors,,POLY - Policy,Amount Received,0140,Balance Sheet,,,45119,0000490431,638.6,Revenue,HM REVENUE & CUSTOMS,0
South Ribble Borough Council,http://statistics.data.gov.uk/id/local-authority/30UE,Short Term Creditors,,POLY - Policy,Amount Paid,0030,Balance Sheet,,HMRC Income Tax - June 23 Deductions from Payroll,45119,0000490563,108595.78,Revenue,HM REVENUE & CUSTOMS 065PV00107808,0
South Ribble Borough Council,http://statistics.data.gov.uk/id/local-authority/30UE,Unapportionable Central OHeads,,POLY - Policy,Apprentice Levy,1111,Salaries,,HMRC App Levy - June 23 Deductions from Payroll,45119,0000490564,7169,Revenue,HM REVENUE & CUSTOMS 065PV00107808,0
South Ribble Borough Council,http://statistics.data.gov.uk/id/local-authority/30UE,Short Term Creditors,,POLY - Policy,Amount Paid,0030,Balance Sheet,,HMRC NI EE's - June 23 Deductions from Payroll,45119,0000490565,61728.51,Revenue,HM REVENUE & CUSTOMS 065PV00107808,0
South Ribble Borough Council,http://statistics.data.gov.uk/id/local-authority/30UE,Short Term Creditors,,POLY - Policy,Amount Paid,0030,Balance Sheet,,HMRC NI ER's - June 23 Deductions from Payroll,45119,0000490566,88638.76,Revenue,HM REVENUE & CUSTOMS 065PV00107808,0
South Ribble Borough Council,http://statistics.data.gov.uk/id/local-authority/30UE,Short Term Creditors,,POLY - Policy,Amount Paid,0030,Balance Sheet,,HMRC Student Loans - June 23 Deductions from Payroll,45119,0000490568,4015,Revenue,HM REVENUE & CUSTOMS 065PV00107808,0
South Ribble Borough Council,http://statistics.data.gov.uk/id/local-authority/30UE,Economic Development,,POLY - Policy,Lease Car National Insurance,1133,Salaries,,P11D Class 1A NIC`s,45126,0000490751,1228.5,Revenue,HM REVENUE & CUSTOMS 065PV00107808,0
South Ribble Borough Council,http://statistics.data.gov.uk/id/local-authority/30UE,Open Spaces,,CDIG - Customer & Digital,Operational Equip & Tools,4010,Furniture- Equip & Materials,,Tree team equipment as per sales quotation SQ003189,45119,0000489736,2523.12,Revenue,Honey Brothers Ltd,0
South Ribble Borough Council,http://statistics.data.gov.uk/id/local-authority/30UE,Capital,,COMP - Commercial Services,Consultancy,C259,Capital Other Land & Bldgs,,Project Management Services - Jubilee Gardens (RIBA 4) - As per additional scope v3,45119,0000490384,4000,Revenue,Identity Consult Ltd,0
South Ribble Borough Council,http://statistics.data.gov.uk/id/local-authority/30UE,Central Support Services,,CDIG - Customer & Digital,Software Licensing,4243,Communications & Comuting,,"South Ribble Borough Council for Uniform Software & Maintenance - Year 2 - 01/04/2023 to 31/03/2024., Inflation has been applied ",45133,0000487586,55050,Revenue,IDOX PLC,0
South Ribble Borough Council,http://statistics.data.gov.uk/id/local-authority/30UE,Elections,,GOVE - Governance,Electoral Administration Act,4970,Miscellaneous Expenses,,"IDOX 2023 Canvass Options (Inc setup, responses, data reloads, print & send and telephone canvass), , Setup charges, software and",45112,0000490286,2215,Revenue,IDOX PLC,0
South Ribble Borough Council,http://statistics.data.gov.uk/id/local-authority/30UE,Elections,,GOVE - Governance,Electoral Administration Act,4970,Miscellaneous Expenses,,IVR/Print & Send based on the post canvass reconciliation balance(s) paid in December,45112,0000490286,2878.95,Revenue,IDOX PLC,0
South Ribble Borough Council,http://statistics.data.gov.uk/id/local-authority/30UE,Open Spaces,,PDEV - Planning & Development,GM Refurbishment,4657,Expenses,,To be credited by 68126,45126,0000490495,6434,Revenue,Imperial Bricks Limited,0
South Ribble Borough Council,http://statistics.data.gov.uk/id/local-authority/30UE,Open Spaces,,PDEV - Planning & Development,GM Refurbishment,4657,Expenses,,5000no 65mm Tumbled Regency Multi bricks delivered to ADDRESS REDACTED,45126,0000490529,1145,Revenue,Imperial Bricks Limited,0
South Ribble Borough Council,http://statistics.data.gov.uk/id/local-authority/30UE,Open Spaces,,PDEV - Planning & Development,GM Refurbishment,4657,Expenses,,5000no 65mm Tumbled Regency Multi bricks delivered to ADDRESS REDACTED,45126,0000490677,5060,Revenue,Imperial Bricks Limited,0
South Ribble Borough Council,http://statistics.data.gov.uk/id/local-authority/30UE,Central Support Services,,CDIG - Customer & Digital,Software Licensing,4243,Communications & Comuting,,Enghouse - managed service scope in schedule. 2V,45133,0000485067,3306,Revenue,INSIGHT UK,0
South Ribble Borough Council,http://statistics.data.gov.uk/id/local-authority/30UE,Central Support Services,,CDIG - Customer & Digital,Materials General,4040,Furniture- Equip & Materials,,QC10 - QUICK SET CONCRETE-QC10,45126,0000490375,1367.52,Revenue,INSTARMAC GROUP PLC,0
South Ribble Borough Council,http://statistics.data.gov.uk/id/local-authority/30UE,Open Spaces,,PDEV - Planning & Development,GM Refurbishment,4657,Expenses,,Recycling of green waste from Worden Park,45112,0000490326,910,Revenue,JOHN COOPER RECYCLING LTD,0
South Ribble Borough Council,http://statistics.data.gov.uk/id/local-authority/30UE,Capital,,COMP - Commercial Services,Cap Contract Payment,C230,Capital Other Land & Bldgs,,Description: Exterior refurbishments of Farmyard cottages as per NAME REDACTED request,45126,0000490354,10993.29,Revenue,John Wade Groundworks Ltd t/a Wade Group,0
South Ribble Borough Council,http://statistics.data.gov.uk/id/local-authority/30UE,Capital,,COMP - Commercial Services,Cap Contract Payment,C230,Capital Other Land & Bldgs,,Provision of Acoustician Consultancy Services - Extra Care West Paddock Scheme,45119,0000490335,1000,Revenue,JPM Acoustics Ltd,0
South Ribble Borough Council,http://statistics.data.gov.uk/id/local-authority/30UE,Capital,,COMP - Commercial Services,Consultancy,C259,Capital Other Land & Bldgs,,Noise Assessment report update - Jubilee Gardens (Section 73),45119,0000490335,1350,Revenue,JPM Acoustics Ltd,0
South Ribble Borough Council,http://statistics.data.gov.uk/id/local-authority/30UE,Capital,,COMP - Commercial Services,Cap Contract Payment,C230,Capital Other Land & Bldgs,,Worden Hall - MEP Consultancy Services (PUR0047944 Closed so unable to GRN. New PO to complete invoice),45112,0000490308,700,Revenue,JRB Environmental Design Limited,0
South Ribble Borough Council,http://statistics.data.gov.uk/id/local-authority/30UE,Capital,,COMP - Commercial Services,Cap Contract Payment,C230,Capital Other Land & Bldgs,,EPC - Worden Hall,45119,0000490318,1143,Revenue,JRB Environmental Design Limited,0
South Ribble Borough Council,http://statistics.data.gov.uk/id/local-authority/30UE,Homelessness,,COMU - Communities,Contributions to Other Bodies,4730,Grants & Subscriptions,,"Purchase order request received 24/07/23 from NAME REDACTED, NAME REDACTED at Leyland-based youth homelessness charity, Key U",45133,0000490938,8333.34,Revenue,KEY UNLOCKING FUTURES LTD,0
South Ribble Borough Council,http://statistics.data.gov.uk/id/local-authority/30UE,Regulatory Services,,COMU - Communities,Poisons & Baits,4041,Furniture- Equip & Materials,,Pesticide stock and PPE & Equipment for NAME REDACTED as per your Quotation 02012303QUO00052/00 (South Ribble),45119,0000490551,1961.69,Revenue,KILLGERM CHEMICALS LTD,0
South Ribble Borough Council,http://statistics.data.gov.uk/id/local-authority/30UE,Surplus or Deficit on Trading,,COMP - Commercial Services,Electricity,2303,Energy Costs,,ELEC,45126,0000490639,1336.87,Revenue,Kinex,0
South Ribble Borough Council,http://statistics.data.gov.uk/id/local-authority/30UE,Capital,,CDIG - Customer & Digital,Cap Contract Payment,C230,Capital Other Land & Bldgs,,cancelled out by credit 204260,45133,0000489869,70000,Revenue,KOMPAN LTD,0
South Ribble Borough Council,http://statistics.data.gov.uk/id/local-authority/30UE,Surplus or Deficit on Trading,,COMP - Commercial Services,Rents,2401,Rents & Rates,,"Payment of quarterly rental charge at Forward Industrial Estate, L2 Property Limited for 2023/2024, Quarter 2",45112,0000490315,16147.5,Revenue,L2 Property Limited,0
South Ribble Borough Council,http://statistics.data.gov.uk/id/local-authority/30UE,Central Support Services,,CDIG - Customer & Digital,Materials General,4040,Furniture- Equip & Materials,,1000 litres Type 46 Hydraulic Oil (Varol) @ £1.25 per litre,45126,0000490631,1250,Revenue,LANCASHIRE OILS LTD,0
South Ribble Borough Council,http://statistics.data.gov.uk/id/local-authority/30UE,Community Development,,COMU - Communities,Professional Fees,4510,Services,,"Easter HAF camps 3rd, 6th, 12th & 14th April, 3 dates @ £10 per head and 1 date @ £15 per head. Total number of spaces 190",45112,0000488834,2250,Revenue,LANCS COUNTY COUNCIL,0
South Ribble Borough Council,http://statistics.data.gov.uk/id/local-authority/30UE,Central Support Services,,CDIG - Customer & Digital,Materials General,4040,Furniture- Equip & Materials,,1 AIR BAGS & Fittings VIN REDACTED jfc20238,45112,0000489786,921.97,Revenue,LANCS DAF,0
South Ribble Borough Council,http://statistics.data.gov.uk/id/local-authority/30UE,Central Support Services,,CDIG - Customer & Digital,Materials General,4040,Furniture- Equip & Materials,,"Electronic Motor, 2 x Window guides, Fixing plate, 2X solid stops, Gear wheel for window, , VIN REDACTED, JFC 20116",45126,0000490149,616.82,Revenue,LANCS DAF,0
South Ribble Borough Council,http://statistics.data.gov.uk/id/local-authority/30UE,Central Support Services,,CDIG - Customer & Digital,Materials General,4040,Furniture- Equip & Materials,,"Filter Kit, Gear Box filters, Crank case ventilation, VIN REDACTED, JFC 20324",45112,0000490262,510.62,Revenue,LANCS DAF,0
South Ribble Borough Council,http://statistics.data.gov.uk/id/local-authority/30UE,Central Support Services,,CDIG - Customer & Digital,Materials General,4040,Furniture- Equip & Materials,,"1x ad blue valve, 1x filter, 2x gaskets, VIN REDACTED, JFC20362",45126,0000490459,531.49,Revenue,LANCS DAF,0
South Ribble Borough Council,http://statistics.data.gov.uk/id/local-authority/30UE,Central Support Services,,CDIG - Customer & Digital,Materials General,4040,Furniture- Equip & Materials,,"Nox Sensor, 2x Gaskets, , VIN REDACTED, JFC 20362",45126,0000490540,651.25,Revenue,LANCS DAF,0
South Ribble Borough Council,http://statistics.data.gov.uk/id/local-authority/30UE,Central Support Services,,CDIG - Customer & Digital,Materials General,4040,Furniture- Equip & Materials,,"Exhaust straps plus gaskets, nox sensor , VIN REDACTED, JFC20361",45126,0000490598,653.49,Revenue,LANCS DAF,0
South Ribble Borough Council,http://statistics.data.gov.uk/id/local-authority/30UE,Central Support Services,,CDIG - Customer & Digital,Materials General,4040,Furniture- Equip & Materials,,"1x header tank, 1x seat belt buckle, 1x seat height regulator, VIN REDACTED, JFC20408.",45133,0000490773,601.39,Revenue,LANCS DAF,0
South Ribble Borough Council,http://statistics.data.gov.uk/id/local-authority/30UE,Capital,,COMP - Commercial Services,Cap Contract Payment,C230,Capital Other Land & Bldgs,,"Path Repairs & Improvements, Worden Park, Leyland",45112,0000490247,46748.64,Revenue,LANDSCAPE ENGINEERING LIMITED,0
South Ribble Borough Council,http://statistics.data.gov.uk/id/local-authority/30UE,Recreation & Sport,,COMP - Commercial Services,Planned Annual Repair & Maintenance,2021,Premises Repair & Mtne,,Installation of Height restriction Barrier and perimeter bollards at ADDRESS REDACTED as per NAME REDACTED request,45133,0000490838,7300,Revenue,LANDSCAPE ENGINEERING LIMITED,0
South Ribble Borough Council,http://statistics.data.gov.uk/id/local-authority/30UE,Capital,,COMP - Commercial Services,Cap Contract Payment,C230,Capital Other Land & Bldgs,,Leyland Town Deal - Landscape Consultancy Services,45119,0000489814,2503.9,Revenue,Lanpro Services Ltd,0
South Ribble Borough Council,http://statistics.data.gov.uk/id/local-authority/30UE,Capital,,COMP - Commercial Services,Cap Professional Fees,C210,Capital Other Land & Bldgs,,Leyland Town Deal - Architect (Landscape) Professional Fees - Procurement 4: Construction of BASE2 & Commercial Building A (RIBA ,45119,0000490239,5000,Revenue,Lanpro Services Ltd,0
South Ribble Borough Council,http://statistics.data.gov.uk/id/local-authority/30UE,Capital,,COMP - Commercial Services,Cap Contract Payment,C230,Capital Other Land & Bldgs,,Principal Designer Services - Public Realm RIBA Stages 3-7,45119,0000490241,3000,Revenue,Lanpro Services Ltd,0
South Ribble Borough Council,http://statistics.data.gov.uk/id/local-authority/30UE,Economic Development,,POLY - Policy,Miscellaneous Expenses,4851,Miscellaneous Expenses,,Music in the Town event payment,45119,0000490444,9942,Revenue,Leyland Town Team,0
South Ribble Borough Council,http://statistics.data.gov.uk/id/local-authority/30UE,Central Support Services,,POLY - Policy,Occupational Health,1408,Training Expenses,,Counselling for staff - May 2023,45126,0000490263,540,Revenue,Livewell Counselling Service,0
South Ribble Borough Council,http://statistics.data.gov.uk/id/local-authority/30UE,Central Support Services,,POLY - Policy,Individual Subs Prof. Bodies,1741,Other Employee Expenses,,SRBC Employer Accreditation for 2023 - Invoice No 136149,45133,0000490873,528,Revenue,Living Wage Foundation,0
South Ribble Borough Council,http://statistics.data.gov.uk/id/local-authority/30UE,Open Spaces,,COMP - Commercial Services,GM Refurbishment,4657,Expenses,,20T x 10mm Limestone to ADDRESS REDACTED on 28.4.23,45126,0000489667,505.96,Revenue,M C & M A STEWART HAULAGE LTD,0
South Ribble Borough Council,http://statistics.data.gov.uk/id/local-authority/30UE,Open Spaces,,COMP - Commercial Services,GM Refurbishment,4657,Expenses,,Up to 4 20T loads GSB Type 1 delivered to ADDRESS REDACTED,45126,0000489670,1648.19,Revenue,M C & M A STEWART HAULAGE LTD,0
South Ribble Borough Council,http://statistics.data.gov.uk/id/local-authority/30UE,Capital,,COMU - Communities,Capital Grant,C570,Deferrd Chgs-Improvemnt Grants,,DFG WORKS FOR LEVEL ACCESS BATHROOM AT ADDRESS REDACTED NEW PROGRESS PROPERTY SO 50% OF TOTAL QUOTE TO BE PAI,45112,0000490310,3199.28,Revenue,MAHONEY CONTRACTORS LTD,0
South Ribble Borough Council,http://statistics.data.gov.uk/id/local-authority/30UE,Capital,,COMU - Communities,Capital Grant,C570,Deferrd Chgs-Improvemnt Grants,,DFG WORKS FOR LEVEL ACCESS BATHROOM AT ADDRESS REDACTED NEW PROGRESS PROPERTY SO 50% OF TOTAL QUOTE TO BE ,45133,0000490487,2450.41,Revenue,MAHONEY CONTRACTORS LTD,0
South Ribble Borough Council,http://statistics.data.gov.uk/id/local-authority/30UE,Capital,,COMU - Communities,Capital Grant,C570,Deferrd Chgs-Improvemnt Grants,,DFG WORKS FOR RAMP WORKS AT ADDRESS REDACTED NEW PROGRESS PROPERTY SO 50% OF TOTAL QUOTE TO BE PAID TOTAL QU,45133,0000490489,3587.1,Revenue,MAHONEY CONTRACTORS LTD,0
South Ribble Borough Council,http://statistics.data.gov.uk/id/local-authority/30UE,Capital,,COMU - Communities,Capital Grant,C570,Deferrd Chgs-Improvemnt Grants,,DFG WORKS FOR LEVEL ACCESS SHOWER WORKS AT ADDRESS REDACTED NEW PROGRESS PROPERTY SO 50% OF TOTAL QUOTE TO,45133,0000490490,4150.05,Revenue,MAHONEY CONTRACTORS LTD,0
South Ribble Borough Council,http://statistics.data.gov.uk/id/local-authority/30UE,Capital,,COMU - Communities,Capital Grant,C570,Deferrd Chgs-Improvemnt Grants,,DFG WORKS FOR LEVEL ACCESS BATHROOM AT ADDRESS REDACTED NEW PROGRESS PROPERTY SO 50% OF TOTAL QUOTE TO BE ,45133,0000490491,4040.34,Revenue,MAHONEY CONTRACTORS LTD,0
South Ribble Borough Council,http://statistics.data.gov.uk/id/local-authority/30UE,Open Spaces,,PDEV - Planning & Development,GM Refurbishment,4657,Expenses,,Transport of up to 10 loads of green waste from Worden Park to Cooper Recycling,45119,0000490279,700,Revenue,Michael Alty,0
South Ribble Borough Council,http://statistics.data.gov.uk/id/local-authority/30UE,Central Support Services,,CDIG - Customer & Digital,Materials General,4040,Furniture- Equip & Materials,,"Valve Block, VIN REDACTED, JFC 20305",45112,0000490280,4039.28,Revenue,MRD Parts LTD,0
South Ribble Borough Council,http://statistics.data.gov.uk/id/local-authority/30UE,Homelessness,,COMU - Communities,Temporary Accommodation,5311,Contractors Chges,,"Purple Roomz have sent us their invoice for all the June 2023 bookings., , This comes to a total of £28,497.08 for 23 different i",45112,0000490266,28497.08,Revenue,National Hotel Rooms Ltd t/a Purple Roomz,0
South Ribble Borough Council,http://statistics.data.gov.uk/id/local-authority/30UE,Development Control,,PDEV - Planning & Development,Advertising,4841,Miscellaneous Expenses,,Press notices for planning applications April 23 to March 24,45119,0000490319,953.37,Revenue,National World Publishing Limited,0
South Ribble Borough Council,http://statistics.data.gov.uk/id/local-authority/30UE,Development Control,,PDEV - Planning & Development,Advertising,4841,Miscellaneous Expenses,,Press notices for planning applications April 23 to March 24,45133,0000490740,803.25,Revenue,National World Publishing Limited,0
South Ribble Borough Council,http://statistics.data.gov.uk/id/local-authority/30UE,Service Management & Support,,CDIG - Customer & Digital,External Contractors Charges,4570,Services,,Collection and disposal of waste fuels from ADDRESS REDACTED,45126,0000490680,1535,Revenue,NEALES WASTE MANAGEMENT,0
South Ribble Borough Council,http://statistics.data.gov.uk/id/local-authority/30UE,Central Support Services,,CDIG - Customer & Digital,Software Licensing,4243,Communications & Comuting,,"NEC Cloud hosting, support and maintenance",45133,0000490914,4495,Revenue,NEC Software Solutions UK Ltd,0
South Ribble Borough Council,http://statistics.data.gov.uk/id/local-authority/30UE,Capital,,COMU - Communities,Capital Grant,C570,Deferrd Chgs-Improvemnt Grants,,DFG WORKS FUNDED BY LANCASHIRE COUNTY COUNCIL AT ADDRESS REDACTED- TOTAL FUNDED BY LCC £40000.00,45112,0000490358,4000,Revenue,Neil Maitland,0
South Ribble Borough Council,http://statistics.data.gov.uk/id/local-authority/30UE,Street Cleansing,,CDIG - Customer & Digital,Materials General,4040,Furniture- Equip & Materials,,92 x Duplex @ £100.75,45112,0000490021,9269,Revenue,NOMIX ENVIRO LTD,0
South Ribble Borough Council,http://statistics.data.gov.uk/id/local-authority/30UE,Capital,,COMP - Commercial Services,Cap Contract Payment,C230,Capital Other Land & Bldgs,,"Jubilee Gardens, Leyland – Stage 4 Value Engineering Revisions",45119,0000490022,6600,Revenue,NORR Consultants Limited,0
South Ribble Borough Council,http://statistics.data.gov.uk/id/local-authority/30UE,Capital,,COMP - Commercial Services,Consultancy,C259,Capital Other Land & Bldgs,,Jubilee Gardens - Plans update (VE),45119,0000490436,1500,Revenue,NORR Consultants Limited,0
South Ribble Borough Council,http://statistics.data.gov.uk/id/local-authority/30UE,Democratic Represent and  Mgnt,,GOVE - Governance,Members Training,1406,Training Expenses,,"Scrutiny Skills: 0.5, As per South Ribble contact: NAME REDACTED",45119,0000490577,950,Revenue,NORTH WEST EMPLOYERS,0
South Ribble Borough Council,http://statistics.data.gov.uk/id/local-authority/30UE,Central Support Services,,CDIG - Customer & Digital,Materials General,4040,Furniture- Equip & Materials,,CHANNEL BRUSH - 2.8 mm POLY & 3.3mm WIRE 5 row 700/1000mm - MIDI SWEEPER-78399/2,45126,0000490681,830.17,Revenue,NORTHERN MUNICIPAL SPARES LTD,0
South Ribble Borough Council,http://statistics.data.gov.uk/id/local-authority/30UE,Economic Development,,POLY - Policy,Professional Fees,4510,Services,,First Aid Provision for MITP,45126,0000489768,1565,Revenue,NorWest Ambulance T/A NorWest Medical,0
South Ribble Borough Council,http://statistics.data.gov.uk/id/local-authority/30UE,Parking Services,,CDIG - Customer & Digital,Parking Attendants,4514,Services,,"Variable Fee Car Park Enforcement , JUNE 2023 - Variable Recharge Items",45119,0000490516,2244.8,Revenue,NSL LTD,0
South Ribble Borough Council,http://statistics.data.gov.uk/id/local-authority/30UE,Recreation & Sport,,COMP - Commercial Services,Reactive Repair & Maintenance,2020,Premises Repair & Mtne,,"Remove current damaged bollards, stainless steel. Bamber Bridge Leisure centre, Bamber Bridge, PrestonClear and prepare holes, al",45133,0000490742,1058,Revenue,Oakley Landscaping Ltd,0
South Ribble Borough Council,http://statistics.data.gov.uk/id/local-authority/30UE,Recreation & Sport,,COMP - Commercial Services,Reactive Repair & Maintenance,2020,Premises Repair & Mtne,,Labour split,45133,0000490742,800,Revenue,Oakley Landscaping Ltd,0
South Ribble Borough Council,http://statistics.data.gov.uk/id/local-authority/30UE,Economic Development,,POLY - Policy,Public Relations Strategy,4848,Miscellaneous Expenses,,3 SRBC Events Photographer,45126,0000489445,600,Revenue,PAUL HEYES PHOTOGRAPHY LTD,0
South Ribble Borough Council,http://statistics.data.gov.uk/id/local-authority/30UE,Surplus or Deficit on Trading,,COMP - Commercial Services,Reactive Repair & Maintenance,2020,Premises Repair & Mtne,,"To add a damp proof membrane on day one, day two prime and screed and day three supply and fit 43.42sqm of Lvt as per Jason reque",45112,0000490237,2865.72,Revenue,PDP PROPERTY SERVICES LTD,0
South Ribble Borough Council,http://statistics.data.gov.uk/id/local-authority/30UE,Central Support Services,,COMP - Commercial Services,Planned Annual Repair & Maintenance,2021,Premises Repair & Mtne,,"Quote Number QU-0734 Reference Moss Side Depot as per NAME REDACTED request , , Reference, Moss side works depot, following the installat",45126,0000490576,4100,Revenue,PDP PROPERTY SERVICES LTD,0
South Ribble Borough Council,http://statistics.data.gov.uk/id/local-authority/30UE,Open Spaces,,COMP - Commercial Services,GM Refurbishment,4657,Expenses,,Repairs to Railings at ADDRESS REDACTED as per quote dated 16th March 2023.,45126,0000489434,1367.2,Revenue,PEERLESS FENCING LTD,0
South Ribble Borough Council,http://statistics.data.gov.uk/id/local-authority/30UE,Recycling,,CDIG - Customer & Digital,Contract Printing,4127,Printing- Stat & Office Expens,,Provision & Posting of Garden Waste May - December 2023 @ 0.97p per permit.,45126,0000490619,1167.88,Revenue,Permiserv Ltd,0
South Ribble Borough Council,http://statistics.data.gov.uk/id/local-authority/30UE,Tourism,,COMP - Commercial Services,Rental,4012,Furniture- Equip & Materials,,2023/ 2024 Annual Contract for Sanitary Services at Worden Hall,45112,0000490374,1317,Revenue,PHS GROUP PLC,0
South Ribble Borough Council,http://statistics.data.gov.uk/id/local-authority/30UE,Central Support Services,,PDEV - Planning & Development,Agency Staff,1121,Salaries,,Enforcement consultancy services,45119,0000490183,2109,Revenue,Planning Control & PACE Solutions,0
South Ribble Borough Council,http://statistics.data.gov.uk/id/local-authority/30UE,Central Support Services,,PDEV - Planning & Development,Agency Staff,1121,Salaries,,Enforcement consultancy services,45119,0000490312,1349,Revenue,Planning Control & PACE Solutions,0
South Ribble Borough Council,http://statistics.data.gov.uk/id/local-authority/30UE,Central Support Services,,PDEV - Planning & Development,Agency Staff,1121,Salaries,,Enforcement consultancy services,45133,0000490726,1254,Revenue,Planning Control & PACE Solutions,0
South Ribble Borough Council,http://statistics.data.gov.uk/id/local-authority/30UE,Central Support Services,,GOVE - Governance,Legal,4821,Miscellaneous Expenses,,Placement fee for NAME REDACTED / role Senior Procurement Officer,45119,0000490435,4000,Revenue,Precision Resource Group Limited,0
South Ribble Borough Council,http://statistics.data.gov.uk/id/local-authority/30UE,Recreation & Sport,,COMP - Commercial Services,Maintenance & Repair,4013,Furniture- Equip & Materials,,"Leyland Leisure Centre., To supply and erect roof edge protection to the perimeter of the building as requested. The, handrail wi",45119,0000490157,2560.13,Revenue,Preston Scaffolding NW Ltd.,0
South Ribble Borough Council,http://statistics.data.gov.uk/id/local-authority/30UE,Recreation & Sport,,COMP - Commercial Services,Maintenance & Repair,4013,Furniture- Equip & Materials,,"Bamber Bridge Leisure Centre. , To supply and erect roof edge protection to the perimeter of the building as requested. , The han",45119,0000490158,7063.5,Revenue,Preston Scaffolding NW Ltd.,0
South Ribble Borough Council,http://statistics.data.gov.uk/id/local-authority/30UE,Recreation & Sport,,COMP - Commercial Services,Planned Annual Repair & Maintenance,2021,Premises Repair & Mtne,,Additional Roof Edge Protection Works at Leyland Leisure centre as per NAME REDACTED request,45119,0000490159,4029.23,Revenue,Preston Scaffolding NW Ltd.,0
South Ribble Borough Council,http://statistics.data.gov.uk/id/local-authority/30UE,Elections,,GOVE - Governance,Polling Centre Costs,4421,Miscellaneous Expenses,,Ack ref:10286 Borough ballot books (750 ordinary/66 tendered),45126,0000489057,11824,Revenue,PRINT IMAGE NETWORK LTD,0
South Ribble Borough Council,http://statistics.data.gov.uk/id/local-authority/30UE,Elections,,GOVE - Governance,Postal Voting Costs,4422,Miscellaneous Expenses,,"Ack ref:10282 Combined Voterpeel Plus postal ballot packs (Main issue, 2nd issue & replacements)",45112,0000490248,18672.86,Revenue,PRINT IMAGE NETWORK LTD,0
South Ribble Borough Council,http://statistics.data.gov.uk/id/local-authority/30UE,Short Term Creditors,,POLY - Policy,Amount Paid,0030,Balance Sheet,,Prudential - June 23 Deductions from Payroll,45119,0000490561,605,Revenue,Prudential,0
South Ribble Borough Council,http://statistics.data.gov.uk/id/local-authority/30UE,Short Term Creditors,,POLY - Policy,Amount Paid,0030,Balance Sheet,,Prudential SS - June 23 Deductions from Payroll,45119,0000490562,4610.4,Revenue,Prudential,0
South Ribble Borough Council,http://statistics.data.gov.uk/id/local-authority/30UE,Capital,,COMP - Commercial Services,Cap Contract Payment,C230,Capital Other Land & Bldgs,,"REF: REMODELLING WORKS TO ADDRESS REDACTED , OUR REF LRS Q 5086 26 TH MAY 2022, , •	To Supply and install Timber Claddin",45112,0000488396,15000,Revenue,PSR & Sons Joiners & Building Contractors,0
South Ribble Borough Council,http://statistics.data.gov.uk/id/local-authority/30UE,Surplus or Deficit on Trading,,COMP - Commercial Services,Planned Annual Repair & Maintenance,2021,Premises Repair & Mtne,,"MANUFACTURE AND INSTALL DOOR SETS NTERNAL DOOR / EXTERNAL. Joinery Works , To Carefully remove large internal door, frame and tak",45112,0000490145,3250,Revenue,PSR & Sons Joiners & Building Contractors,0
South Ribble Borough Council,http://statistics.data.gov.uk/id/local-authority/30UE,Central Support Services,,COMP - Commercial Services,Reactive Repair & Maintenance,2020,Premises Repair & Mtne,,"To Replace Damaged Double Glazed units as required. (2nd Floor and Ground floor), , Ease and Release 2 no Windows as Requested. A",45126,0000490496,1000,Revenue,PSR & Sons Joiners & Building Contractors,0
South Ribble Borough Council,http://statistics.data.gov.uk/id/local-authority/30UE,Central Support Services,,CDIG - Customer & Digital,Computer Maintenance,4211,Communications & Comuting,,System rental and communications charge for 60 vehicles for 3 months 1.7.23 - 30.9.23,45126,0000490520,2070,Revenue,Quartix,0
South Ribble Borough Council,http://statistics.data.gov.uk/id/local-authority/30UE,Capital,,PDEV - Planning & Development,Cap Contract Payment,C230,Capital Other Land & Bldgs,,Final Retention payment on PUR0046130,45126,0000490429,14961.57,Revenue,R Developments Ltd T/A Rosslee Construction Ltd,0
South Ribble Borough Council,http://statistics.data.gov.uk/id/local-authority/30UE,Open Spaces,,CDIG - Customer & Digital,GM Refurbishment,4657,Expenses,,"Various stone copings, plinths and blocks for Worden Park balustrade wall",45112,0000490364,2000,Revenue,RECCLESIA LTD,0
South Ribble Borough Council,http://statistics.data.gov.uk/id/local-authority/30UE,Open Spaces,,COMP - Commercial Services,Reactive Repair & Maintenance,2020,Premises Repair & Mtne,,Dog Wash at Worden Park 2023/2024 £550.00 x 4 visits,45133,0000490738,500,Revenue,RED ROSE BUILDING MAINTENANCE,0
South Ribble Borough Council,http://statistics.data.gov.uk/id/local-authority/30UE,Central Support Services,,CDIG - Customer & Digital,External Contractors Charges,4570,Services,,"Spec repair, VIN REDACTED , JFC 20376",45126,0000490544,711,Revenue,RIBBLESDALE AUTO ELECTRICS 1992 LTD,0
South Ribble Borough Council,http://statistics.data.gov.uk/id/local-authority/30UE,Central Support Services,,CDIG - Customer & Digital,Materials General,4040,Furniture- Equip & Materials,,"Hydrualic filter, VIN REDACTED, JFC 20294",45126,0000490423,512.68,Revenue,RTS Muni,0
South Ribble Borough Council,http://statistics.data.gov.uk/id/local-authority/30UE,Open Spaces,,CDIG - Customer & Digital,External Contractors Charges,4570,Services,,"Fell, Process and Remove 2 x dead Beech trees to the rear of ADDRESS REDACTED",45119,0000490342,1180,Revenue,RUSS ASPINALL T/A BEARDWOOD TREE SERVICE,0
South Ribble Borough Council,http://statistics.data.gov.uk/id/local-authority/30UE,Short Term Debtors,,COMP - Commercial Services,Amount Paid,0030,Balance Sheet,,To supply continued Commercial Estates support for the Test Track mixed use development as per NAME REDACTED for 2 years From Apr,45133,0000490450,1065,Revenue,Sanderson Weatherall LLP,0
South Ribble Borough Council,http://statistics.data.gov.uk/id/local-authority/30UE,Capital,,COMP - Commercial Services,Cap Contract Payment,C230,Capital Other Land & Bldgs,,ADDRESS REDACTED guarding during 25/05/2023 - 05/06/2023 1 officer as per NAME REDACTED and NAME REDACTED request ,45112,0000490345,9647.87,Revenue,SECTOR SECURITY SERVICES LTD,0
South Ribble Borough Council,http://statistics.data.gov.uk/id/local-authority/30UE,Central Support Services,,GOVE - Governance,Legal,4821,Miscellaneous Expenses,,"North West Legal Consortium Annual Subscription for , 2023/ 2024",45126,0000490758,500,Revenue,SEFTON M B COUNCIL,0
South Ribble Borough Council,http://statistics.data.gov.uk/id/local-authority/30UE,Central Support Services,,GOVE - Governance,Agency Staff,1121,Salaries,,Payment for Locum Solicitor NAME REDACTED,45119,0000490440,2686,Revenue,SELLICK PARTNERSHIP LTD,0
South Ribble Borough Council,http://statistics.data.gov.uk/id/local-authority/30UE,Economic Development,,POLY - Policy,Investment & Improvement,485K,Miscellaneous Expenses,,"•	Participation in all pre-event meetings to discuss arrangements and determine requirements for both days., •	Social media promo",45133,0000490171,4000,Revenue,SHOUT Network Ltd,0
South Ribble Borough Council,http://statistics.data.gov.uk/id/local-authority/30UE,Development Control,,PDEV - Planning & Development,Operational Equip & Tools,4010,Furniture- Equip & Materials,,Annual contract for lease / service of Plotter printer - HP Design jet XL 3600,45133,0000490778,1015.29,Revenue,Siemens Financial Services Limited,0
South Ribble Borough Council,http://statistics.data.gov.uk/id/local-authority/30UE,Capital,,COMP - Commercial Services,Cap Contract Payment,C230,Capital Other Land & Bldgs,,"Requested by NAME REDACTED - Bamber Bridge Football Pavilion Internal Works:, , To create suitable opening through blockwork to fro",45112,0000488819,3581.55,Revenue,Singleton & Smart Ltd,0
South Ribble Borough Council,http://statistics.data.gov.uk/id/local-authority/30UE,Capital,,COMP - Commercial Services,Cap Contract Payment,C230,Capital Other Land & Bldgs,,"Requested by NAME REDACTED - Bamber Bridge Football Pavilion Internal Works:, , To create suitable opening through blockwork to fro",45112,0000488935,1200,Revenue,Singleton & Smart Ltd,0
South Ribble Borough Council,http://statistics.data.gov.uk/id/local-authority/30UE,Capital,,COMP - Commercial Services,Misc Capital Payments,C234,Capital Other Land & Bldgs,,"Internal refurbishment Works at Vernon Carrus Cricket Club, Request as per NAME REDACTED",45112,0000489400,1024.53,Revenue,Singleton & Smart Ltd,0
South Ribble Borough Council,http://statistics.data.gov.uk/id/local-authority/30UE,Recreation & Sport,,COMP - Commercial Services,Planned Annual Repair & Maintenance,2021,Premises Repair & Mtne,,"Soil Sampling, Ground Investigations & Subsequent Analysis Testing at Bamber Bridge LC Carpark as per NAME REDACTED request",45133,0000490697,4711.06,Revenue,Singleton & Smart Ltd,0
South Ribble Borough Council,http://statistics.data.gov.uk/id/local-authority/30UE,Open Spaces,,CDIG - Customer & Digital,Operational Equip & Tools,4010,Furniture- Equip & Materials,,"1 x HAVSPRO indoor 240volt Beacon Including 4G Dongle with WIFI, 4 x Sensor, 55 x Holster, 4 x HAVSPRO Reporting Package - charge",45119,0000489997,1705.35,Revenue,Sixis Technology Ltd,0
South Ribble Borough Council,http://statistics.data.gov.uk/id/local-authority/30UE,Short Term Creditors,,POLY - Policy,Amount Paid,0030,Balance Sheet,,Conservative Councillors - June 23 Deductions from Payroll,45119,0000490560,3760,Revenue,SOUTH RIBBLE CONSERVATIVE FUND,0
South Ribble Borough Council,http://statistics.data.gov.uk/id/local-authority/30UE,Short Term Creditors,,POLY - Policy,Amount Paid,0030,Balance Sheet,,Labour Councillors - June 23 Deductions from Payroll,45119,0000490559,1002.17,Revenue,SOUTH RIBBLE LABOUR PARTY LOCAL GOVERNM,0
South Ribble Borough Council,http://statistics.data.gov.uk/id/local-authority/30UE,Recreation & Sport,,COMP - Commercial Services,South Ribble Leisure Ltd Costs,5600,Contractors Chges,,"Qtr 1 Adj, Qtr 2 Subsidy 23/24",45126,0000490482,141175,Revenue,South Ribble Leisure Ltd,0
South Ribble Borough Council,http://statistics.data.gov.uk/id/local-authority/30UE,Community Development,,COMU - Communities,Professional Fees,4510,Services,,HAF Plus camps during February half term,45119,0000490523,7134.02,Revenue,South Ribble Leisure Ltd,0
South Ribble Borough Council,http://statistics.data.gov.uk/id/local-authority/30UE,Recreation & Sport,,COMP - Commercial Services,South Ribble Leisure Ltd Costs,5600,Contractors Chges,,2023/24 Support,45126,0000490791,205350,Revenue,South Ribble Leisure Ltd,0
South Ribble Borough Council,http://statistics.data.gov.uk/id/local-authority/30UE,Central Support Services,,CDIG - Customer & Digital,External Contractors Charges,4570,Services,,Spec repair VIN REDACTED JFC19962,45112,0000489953,1615,Revenue,Southfield RCV Services Limited,0
South Ribble Borough Council,http://statistics.data.gov.uk/id/local-authority/30UE,Service Management & Support,,CDIG - Customer & Digital,Gas Oil,3134,Direct Transport Costs,,2500l Gas Oil @ 68.70ppl,45119,0000490350,1766.94,Revenue,Standard Fuel Oils LtdMain,0
South Ribble Borough Council,http://statistics.data.gov.uk/id/local-authority/30UE,Service Management & Support,,CDIG - Customer & Digital,Diesel Fuel,3132,Direct Transport Costs,,"17000 Ltrs Diesel @ 111.42ppl into the , feeder tank at ADDRESS REDACTED , Side key for cabinet is available from the , ",45112,0000490351,18949.2,Revenue,Standard Fuel Oils LtdMain,0
South Ribble Borough Council,http://statistics.data.gov.uk/id/local-authority/30UE,Capital,,COMU - Communities,Capital Grant,C570,Deferrd Chgs-Improvemnt Grants,,"DFG WORK TO SUPPLY AND INSTALL A STAIRLIFT AT ADDRESS REDACTED AS PER QUOTE SUPPLIED OF £2997.00, CUSTOMER CONTRIB",45112,0000490300,2329.14,Revenue,Stannah Lift Services Ltd,0
South Ribble Borough Council,http://statistics.data.gov.uk/id/local-authority/30UE,Capital,,COMU - Communities,Capital Grant,C570,Deferrd Chgs-Improvemnt Grants,,"DFG WORK TO SUPPLY AND INSTALL A STAIRLIFT AT ADDRESS REDACTED AS PER QUOTE SUPPLIED OF £2938.00, TOTAL COST £2938",45133,0000490488,2938,Revenue,Stannah Lift Services Ltd,0
South Ribble Borough Council,http://statistics.data.gov.uk/id/local-authority/30UE,Capital,,COMP - Commercial Services,Cap Contract Payment,C230,Capital Other Land & Bldgs,,"Provision of Mechanical, Electrical and Plumbing Services to RIBA Stage 3 for the Leyland Town Deal Development",45119,0000485136,2168.75,Revenue,STEVEN A HUNT & ASSOCIATES LTD,0
South Ribble Borough Council,http://statistics.data.gov.uk/id/local-authority/30UE,Capital,,COMP - Commercial Services,Cap Professional Fees,C210,Capital Other Land & Bldgs,,Leyland Town Deal - MEP Professional Fees - Procurement 5: Conversion of Balfour Court & Refurbishment of Leyland Market (RIBA 4-,45119,0000489849,3529,Revenue,STEVEN A HUNT & ASSOCIATES LTD,0
South Ribble Borough Council,http://statistics.data.gov.uk/id/local-authority/30UE,Capital,,CDIG - Customer & Digital,Cap Contract Payment,C230,Capital Other Land & Bldgs,,Repair works to Worden Old Hall Wall,45119,0000490001,21018.61,Revenue,Stone Technical Services Group Ltd,0
South Ribble Borough Council,http://statistics.data.gov.uk/id/local-authority/30UE,Capital,,PDEV - Planning & Development,Cap Contract Payment,C230,Capital Other Land & Bldgs,,Additional pointing works to the north elevation of the old hall wall,45126,0000490528,6984.75,Revenue,Stone Technical Services Group Ltd,0
South Ribble Borough Council,http://statistics.data.gov.uk/id/local-authority/30UE,Democratic Represent and  Mgnt,,COMP - Commercial Services,External Catering Charges,4575,Services,,24th May Menu 3 with cakes 100 @ 8.98 a head.NOT IN BOXES to be delivered before 5 pm,45133,0000490806,1037.8,Revenue,Style Catering,0
South Ribble Borough Council,http://statistics.data.gov.uk/id/local-authority/30UE,Democratic Represent and  Mgnt,,GOVE - Governance,Corp Subs to Professional Bodies,4720,Grants & Subscriptions,,"iNetwork Partnership, 2023-24 Membership",45112,0000490365,2410,Revenue,TAMESIDE METROPOLITAN BOROUGH COUNCIL,0
South Ribble Borough Council,http://statistics.data.gov.uk/id/local-authority/30UE,Capital,,COMP - Commercial Services,Consultancy,C259,Capital Other Land & Bldgs,,"Jubilee Gardens - Landscape Architect Professional Services, , RIBA Stage 4 re design works.- TEPSUB21771.001 - £7,863, OSA updat",45119,0000490480,9753,Revenue,The Environment Partnership (TEP) Limited,0
South Ribble Borough Council,http://statistics.data.gov.uk/id/local-authority/30UE,Central Support Services,,CDIG - Customer & Digital,External Contractors Charges,4570,Services,,TR 251,45126,0000490684,528.13,Revenue,Tomlinson Road Tyres,0
South Ribble Borough Council,http://statistics.data.gov.uk/id/local-authority/30UE,Tourism,,COMP - Commercial Services,Electricity,2303,Energy Costs,,"3006014935, 01 Jun 23 - 30 Jun 23",45119,0000490507,1471.3,Revenue,Total Gas & Power (Elec) 3006014935 - Worden Hall,0
South Ribble Borough Council,http://statistics.data.gov.uk/id/local-authority/30UE,Central Support Services,,COMP - Commercial Services,Electricity,2303,Energy Costs,,"3006014946, 01 Jun 23 - 30 Jun 23",45119,0000490508,2231.89,Revenue,Total Gas & Power (Elec) 3006014946 - Civic Centre,0
South Ribble Borough Council,http://statistics.data.gov.uk/id/local-authority/30UE,Central Support Services,,COMP - Commercial Services,Electricity,2303,Energy Costs,,"3006014957, 01 Jun 23 - 30 Jun 23",45119,0000490506,2681.44,Revenue,Total Gas & Power (Elec) 3006014957 - Moss Side De,0
South Ribble Borough Council,http://statistics.data.gov.uk/id/local-authority/30UE,Central Support Services,,COMP - Commercial Services,Electricity,2303,Energy Costs,,1/6 to 30/6/23,45126,0000490581,646,Revenue,Total Gas & Power (Elec) 3006031666 - Gregson Lane,0
South Ribble Borough Council,http://statistics.data.gov.uk/id/local-authority/30UE,Central Support Services,,COMP - Commercial Services,Gas,2304,Energy Costs,,30/4 to 28/6/23,45119,0000490403,577.6,Revenue,Total Gas & Power (Gas) 3006046241 - Civic Centre,0
South Ribble Borough Council,http://statistics.data.gov.uk/id/local-authority/30UE,Housing Advice,,COMU - Communities,Contributions to Other Bodies,4730,Grants & Subscriptions,,"AFFORDABLE WARMTH FUNDING FOR DOOR AND WINDOW WORKS AT ADDRESS REDACTED , AS PER QUOTE SUPPLED OF £2620.00( INC VAT)",45133,0000490486,2183.33,Revenue,TRADE WINDOWS & CONSERVATORIES,0
South Ribble Borough Council,http://statistics.data.gov.uk/id/local-authority/30UE,Development Control,,PDEV - Planning & Development,Consultancy Fees,4541,Services,,"Consultancy advice - Penwortham Mills - 07/2020/01034/ORM and 07/2020/01035/FUL, , Viability in Planning Assessment		, 		, Overag",45119,0000489110,2000,Revenue,Trebbi Continuum Limited,0
South Ribble Borough Council,http://statistics.data.gov.uk/id/local-authority/30UE,Central Support Services,,CDIG - Customer & Digital,Hiring Expenses,3212,Contract Hire & Operating Leas,,Hire of RCV PN67 HGX 1st June - 30th June 2023 22 days @ £175.00 per day,45126,0000490545,3850,Revenue,Trest Limited,0
South Ribble Borough Council,http://statistics.data.gov.uk/id/local-authority/30UE,Central Support Services,,CDIG - Customer & Digital,External Contractors Charges,4570,Services,,Spec repair to refurbish packer system VIN REDACTED JFC20100,45126,0000490632,4470.3,Revenue,Trest Limited,0
South Ribble Borough Council,http://statistics.data.gov.uk/id/local-authority/30UE,Central Support Services,,CDIG - Customer & Digital,External Contractors Charges,4570,Services,,Truck Tyre Maintenance April 2023,45112,0000490194,680.73,Revenue,Tructyre Fleet Management Ltd,0
South Ribble Borough Council,http://statistics.data.gov.uk/id/local-authority/30UE,Central Support Services,,CDIG - Customer & Digital,External Contractors Charges,4570,Services,,Truck Tyre Maintenance May 2023,45119,0000490437,3546.13,Revenue,Tructyre Fleet Management Ltd,0
South Ribble Borough Council,http://statistics.data.gov.uk/id/local-authority/30UE,Central Support Services,,CDIG - Customer & Digital,External Contractors Charges,4570,Services,,Truck Tyre Maintenance June 2023,45126,0000490727,3318.69,Revenue,Tructyre Fleet Management Ltd,0
South Ribble Borough Council,http://statistics.data.gov.uk/id/local-authority/30UE,Open Spaces,,CDIG - Customer & Digital,External Contractors Charges,4570,Services,,Fell 1 x Ash tree on Leyland Lane,45133,0000490850,600,Revenue,Trunks Tree Care Ltd,0
South Ribble Borough Council,http://statistics.data.gov.uk/id/local-authority/30UE,Central Support Services,,POLY - Policy,UK Healthcare,1710,Other Employee Expenses,,Healthcare payments for SRBC Staff,45126,0000489530,1706.6,Revenue,UK healthcare (BDHSC),0
South Ribble Borough Council,http://statistics.data.gov.uk/id/local-authority/30UE,Economic Development,,POLY - Policy,Operational Equip & Tools,4010,Furniture- Equip & Materials,,"Passes 1000 x Lanyards + Plastic Event passes 70mm x, 100mm slot punch for VIP ticket holders, , VIP, Entrance, Printed Correx fo",45126,0000490253,2372.08,Revenue,UK Media Events Ltd,0
South Ribble Borough Council,http://statistics.data.gov.uk/id/local-authority/30UE,Economic Development,,POLY - Policy,External Catering Charges,4575,Services,,"SRBC - MITP 2023 - Artist Hospitality Riders, , Hotels Double Room + Breakfast Holiday Inn, (Bad Manners), , Hotels Double Room w",45112,0000490254,4427.02,Revenue,UK Media Events Ltd,0
South Ribble Borough Council,http://statistics.data.gov.uk/id/local-authority/30UE,Economic Development,,POLY - Policy,Professional Fees,4510,Services,,"Music In The Park, Videoographer contribution",45126,0000490583,500,Revenue,UK Media Events Ltd,0
South Ribble Borough Council,http://statistics.data.gov.uk/id/local-authority/30UE,Short Term Creditors,,POLY - Policy,Amount Paid,0030,Balance Sheet,,Unison - June 23 Deductions from Payroll,45119,0000490557,1772.35,Revenue,Unison,0
South Ribble Borough Council,http://statistics.data.gov.uk/id/local-authority/30UE,Central Support Services,,COMP - Commercial Services,Planned Annual Repair & Maintenance,2021,Premises Repair & Mtne,,REFRIGERATION MAINTENANCE CONTRACT 2023/2024 as per NAME REDACTED Contract Number 07071,45112,0000490333,1050,Revenue,UNIVERSAL COOLING LTD,0
South Ribble Borough Council,http://statistics.data.gov.uk/id/local-authority/30UE,Surplus or Deficit on Trading,,COMP - Commercial Services,Reactive Repair & Maintenance,2020,Premises Repair & Mtne,,Removal of redundant air-conditioning units. Coxhead cleaning ADDRESS REDACTED,45126,0000490641,630,Revenue,UNIVERSAL COOLING LTD,0
South Ribble Borough Council,http://statistics.data.gov.uk/id/local-authority/30UE,Central Support Services,,CDIG - Customer & Digital,Miscellaneous Expenses,4851,Miscellaneous Expenses,,SIM CARD SUBSCRIPTIONS FOR 360 CCTV 6 VEHICLES FOR 6 MONTHS £17 X 6 VEHICLES X 6 MONTHS,45133,0000490813,612,Revenue,VISION TECHNIQUES UK LTD,0
South Ribble Borough Council,http://statistics.data.gov.uk/id/local-authority/30UE,Economic Development,,POLY - Policy,Public Relations Strategy,4848,Miscellaneous Expenses,,Discover South Ribble support,45119,0000490367,3153.33,Revenue,VIVA PR Limited,0
South Ribble Borough Council,http://statistics.data.gov.uk/id/local-authority/30UE,Central Support Services,,PDEV - Planning & Development,Agency Staff,1121,Salaries,,Consultant planning officer NAME REDACTED,45112,0000490117,1955.63,Revenue,Vivid Resourcing,0
South Ribble Borough Council,http://statistics.data.gov.uk/id/local-authority/30UE,Central Support Services,,PDEV - Planning & Development,Agency Staff,1121,Salaries,,Consultant planning officer NAME REDACTED,45133,0000490316,1995,Revenue,Vivid Resourcing,0
South Ribble Borough Council,http://statistics.data.gov.uk/id/local-authority/30UE,Central Support Services,,PDEV - Planning & Development,Agency Staff,1121,Salaries,,Consultant planning officer NAME REDACTED,45133,0000490513,2008.13,Revenue,Vivid Resourcing,0
South Ribble Borough Council,http://statistics.data.gov.uk/id/local-authority/30UE,Central Support Services,,PDEV - Planning & Development,Agency Staff,1121,Salaries,,Consultant planning officer NAME REDACTED,45133,0000490640,2060.63,Revenue,Vivid Resourcing,0
South Ribble Borough Council,http://statistics.data.gov.uk/id/local-authority/30UE,Central Support Services,,CDIG - Customer & Digital,Government Connect,4212,Communications & Comuting,,01 Jul 23,45133,0000490906,2404.2,Revenue,VODAFONE RE:CABLE & WIRELESS UK,0
South Ribble Borough Council,http://statistics.data.gov.uk/id/local-authority/30UE,Open Spaces,,CDIG - Customer & Digital,Plants Trees & Shrubs,4046,Furniture- Equip & Materials,,Spring bedding plants and bulbs as per quotation for delivery week commencing Monday 5th June 2023. Contact should be made with A,45112,0000490033,4822.85,Revenue,Walkers Nurseries Chester Ltd,0
South Ribble Borough Council,http://statistics.data.gov.uk/id/local-authority/30UE,Central Support Services,,COMP - Commercial Services,Water Charges(Metered),2511,Water,,25/5 to 24/6/23,45119,0000490477,508.83,Revenue,"WaterPlus 4083872980 Council Offices, West Paddock",0
South Ribble Borough Council,http://statistics.data.gov.uk/id/local-authority/30UE,Elections,,GOVE - Governance,Polling Centre Costs,4421,Miscellaneous Expenses,,Hire of port-a-cabin for use as a polling station to be delivered to ADDRESS REDACTED,45126,0000489087,660,Revenue,Wernick Hire Ltd,0
South Ribble Borough Council,http://statistics.data.gov.uk/id/local-authority/30UE,Open Spaces,,CDIG - Customer & Digital,External Contractors Charges,4570,Services,,"Dismantle large Lime tree, chip back to site as discussed , all timber ringed up into firewood sizes",45112,0000490034,2350,Revenue,WESTFIELD TREE SERVICES LTD,0
South Ribble Borough Council,http://statistics.data.gov.uk/id/local-authority/30UE,Central Support Services,,CDIG - Customer & Digital,Other Fees,4520,Services,,outstanding invoices,45112,0000489196,535.78,Revenue,WHISTL  UK LTD,0
South Ribble Borough Council,http://statistics.data.gov.uk/id/local-authority/30UE,Central Support Services,,CDIG - Customer & Digital,Other Fees,4520,Services,,Mail for 2023/4,45126,0000490585,626.48,Revenue,WHISTL  UK LTD,0
South Ribble Borough Council,http://statistics.data.gov.uk/id/local-authority/30UE,Capital,,COMP - Commercial Services,Cap Professional Fees,C210,Capital Other Land & Bldgs,,Leyland Town Deal - Architect & PD (Build) Professional Fees - Procurement 5: Conversion of Balfour Court & Refurbishment of Leyl,45126,0000490649,1250,Revenue,Wilson Mason LLP,0
South Ribble Borough Council,http://statistics.data.gov.uk/id/local-authority/30UE,Capital,,COMP - Commercial Services,Cap Professional Fees,C210,Capital Other Land & Bldgs,,Leyland Town Deal - Architect & PD (Build) Professional Fees - Procurement 1: Demolition of NFM Iddons Factory and Asbestos Remov,45126,0000490686,1900,Revenue,Wilson Mason LLP,0
South Ribble Borough Council,http://statistics.data.gov.uk/id/local-authority/30UE,Capital,,COMP - Commercial Services,Cap Professional Fees,C210,Capital Other Land & Bldgs,,Leyland Town Deal - Architect & PD (Build) Professional Fees - Procurement 5: Conversion of Balfour Court & Refurbishment of Leyl,45126,0000490687,11750.6,Revenue,Wilson Mason LLP,0
South Ribble Borough Council,http://statistics.data.gov.uk/id/local-authority/30UE,Capital,,COMP - Commercial Services,Cap Professional Fees,C210,Capital Other Land & Bldgs,,Leyland Town Deal - Architect & PD (Build) Professional Fees - Procurement 1: Demolition of NFM Iddons Factory and Asbestos Remov,45126,0000490689,1885.97,Revenue,Wilson Mason LLP,0
South Ribble Borough Council,http://statistics.data.gov.uk/id/local-authority/30UE,Capital,,COMP - Commercial Services,Cap Professional Fees,C210,Capital Other Land & Bldgs,,Leyland Town Deal - Architect & PD (Build) Professional Fees - Procurement 5: Conversion of Balfour Court & Refurbishment of Leyl,45126,0000490691,3916.86,Revenue,Wilson Mason LLP,0
South Ribble Borough Council,http://statistics.data.gov.uk/id/local-authority/30UE,Capital,,COMP - Commercial Services,Cap Contract Payment,C230,Capital Other Land & Bldgs,,Leyland Town Deal - OS title plan overlay,45126,0000490725,1093.26,Revenue,Wilson Mason LLP,0
